fUSD/lending_fUSD_20260207
["ID","MTS","AMOUNT","RATE_DAILY","PERIOD"]
[404742368,1770499834732,-3039.3466,0.00015209,2]
[404742369,1770499834742,-2351.0,0.00015237,2]
[404742370,1770499834751,-166.66,0.000153,2]
[404742371,1770499834761,-500.0,0.00015342,2]
[404742372,1770499834770,-500.0,0.00015373,2]
[404742373,1770499834780,-500.0,0.00015373,2]
[404742374,1770499834789,-412.57925422,0.00015373,2]
[404742375,1770499834991,-500.0,0.00015373,2]
[404742376,1770499835002,-500.0,0.00015373,2]
[404742377,1770499835012,-500.0,0.00015373,2]
[404742378,1770499835022,-500.0,0.00015373,2]
[404742379,1770499835032,-500.0,0.00015373,2]
[404742380,1770499835045,-500.0,0.00015373,2]
[404742381,1770499835054,-500.0,0.00015373,2]
[404742382,1770499835063,-622.18622774,0.00015373,2]
[404742383,1770499835073,-614.51163375,0.00015373,2]
[404742384,1770499835083,-500.0,0.00015373,2]
[404742385,1770499835093,-500.0,0.00015373,2]
[404742386,1770499835102,-501.22725125,0.00015373,2]
[404742387,1770499835113,-500.0,0.00015373,2]
[404742388,1770499835122,-500.0,0.00015373,2]
[404742389,1770499835132,-1643.24271512,0.00015429,2]
[404742390,1770499835141,-1169.76636636,0.00015447,2]
[404742391,1770499835151,-500.0,0.00015616,2]
[404742392,1770499835160,-1989.41,0.00015753,2]
[404742393,1770499835170,-166.66,0.00015805,2]
[404742394,1770499835179,-500.0,0.0001589,2]
[404742395,1770499835188,-1628.97246767,0.000159,2]
[404742396,1770499835198,-452.53266451,0.0001591,2]
[404742397,1770499835208,-1000.0,0.00015921,2]
[404742398,1770499835217,-1000.0,0.00015921,2]
[404742399,1770499835226,-1000.0,0.00015921,2]
[404742400,1770499835236,-1000.0,0.00015921,2]
[404742401,1770499835245,-1000.0,0.00015921,2]
[404742402,1770499835254,-1000.0,0.00015921,2]
[404742403,1770499835264,-1000.0,0.00015921,2]
[404742404,1770499835273,-1000.0,0.00015921,2]
[404742405,1770499835283,-565.73255371,0.00015921,2]
[404742406,1770499835293,-1000.0,0.00015921,2]
[404742407,1770499835303,-1051.62801628,0.00015921,2]
[404742408,1770499835313,-433.0,0.00015922,2]
[404742409,1770499835322,-152.06,0.00015968,2]
[404742410,1770499835332,-1331.96,0.00016,2]
[404742411,1770499835341,-205.81687173,0.00016,2]
[404742412,1770499835350,-205.81687173,0.000161,2]
[404742413,1770499835360,-500.0,0.00016164,2]
[404742414,1770499835370,-5000.00658853,0.000162,5]
[404742415,1770499835379,-205.81687173,0.000162,2]
[404742416,1770499835387,-166.66,0.0001631,2]
[404742417,1770499835396,-500.0,0.00016438,2]
[404742418,1770499835405,-1989.41,0.00016438,2]
[404742419,1770499835415,-800.0,0.00016438,2]
[404742420,1770499835425,-1500.0,0.00016468,2]
[404742421,1770499835435,-1500.0,0.00016468,2]
[404742422,1770499835444,-1500.0,0.00016468,2]
[404742423,1770499835453,-1500.0,0.00016468,2]
[404742424,1770499835463,-1500.0,0.00016468,2]
[404742425,1770499835472,-1500.0,0.00016468,2]
[404742426,1770499835482,-1509.37664533,0.00016468,2]
[404742427,1770499835491,-1500.0,0.00016468,2]
[404742428,1770499835500,-1500.0,0.00016468,2]
[404742429,1770499835509,-1600.0,0.00016557,2]
[404742430,1770499835520,-500.0,0.00016712,2]
[404742431,1770499835530,-3292.0,0.00016761,2]
[404742432,1770499835540,-166.66,0.00016815,2]
[404742433,1770499835549,-500.0,0.00016986,2]
[404742434,1770499835559,-6147.54124953,0.00017,2]
[404742435,1770499835568,-1169.76636636,0.00017005,2]
[404742436,1770499835578,-2000.0,0.00017016,2]
[404742437,1770499835588,-2000.0,0.00017016,2]
[404742438,1770499835598,-2000.0,0.00017016,2]
[404742439,1770499835607,-2000.0,0.00017016,2]
[404742440,1770499835619,-2000.0,0.00017016,2]
[404742441,1770499835630,-2000.0,0.00017016,2]
[404742442,1770499835640,-2000.0,0.00017016,2]
[404742443,1770499835652,-2000.0,0.00017016,2]
[404742444,1770499835663,-736.0,0.00017227,2]
[404742445,1770499835675,-160.0,0.00017244,2]
[404742446,1770499835687,-500.0,0.0001726,2]
[404742447,1770499835696,-166.66,0.00017321,2]
[404742448,1770499835707,-508.13334215,0.00017534,2]
[404742449,1770499835718,-802.64621721,0.00017534,2]
[404742450,1770499835729,-2462.0003218,0.00017564,2]
[404742451,1770499835741,-2500.0,0.00017564,2]
[404742452,1770499835751,-1746.94109686,0.00017564,2]
[404742453,1770499835762,-2500.0,0.00017564,2]
[404742454,1770499835772,-2500.0,0.00017564,2]
[404742455,1770499835781,-2500.0,0.00017564,2]
[404742456,1770499835792,-2500.0,0.00017564,2]
[404742457,1770499835803,-2500.0,0.00017564,2]
[404742458,1770499835813,-352.7933,0.00017708,2]
[404742459,1770499835823,-7988.0929307,0.00017708,2]
[404742460,1770499835834,-12928.16673441,0.0001771,2]
[404742461,1770499835844,-500.0,0.00017806,2]
[404742462,1770499835854,-155.0,0.00017807,2]
[404742463,1770499835864,-553.29,0.00017807,2]
[404742464,1770499835873,-620.35,0.00017807,2]
[404742465,1770499835883,-155.0,0.00017807,2]
[404742466,1770499835894,-500.0,0.00017807,2]
[404742467,1770499835904,-500.0,0.00017807,2]
[404742468,1770499835915,-500.0,0.00017807,2]
[404742469,1770499835924,-500.0,0.00017807,2]
[404742470,1770499835934,-500.0,0.00017807,2]
[404742471,1770499835943,-199.38200897,0.00017807,2]
[404742472,1770499835953,-500.0,0.00017807,2]
[404742473,1770499835963,-500.0,0.00017807,2]
[404742474,1770499835972,-500.0,0.00017807,2]
[404742475,1770499835982,-500.0,0.00017807,2]
[404742476,1770499835992,-565.77,0.00017807,2]
[404742477,1770499836001,-500.0,0.00017807,2]
[404742478,1770499836010,-500.0,0.00017807,2]
[404742479,1770499836020,-500.0,0.00017807,2]
[404742480,1770499836029,-166.66,0.00017826,2]
[404742481,1770499836043,-228.52770819,0.0001786,2]
[404742482,1770499836052,-227.72709897,0.000179,2]
[404742483,1770499836062,-609.47161347,0.000179,2]
[404742484,1770499836072,-265.29165808,0.000179,2]
[404742485,1770499836083,-223.21304251,0.000179,3]
[404742486,1770499836093,-213.44960024,0.000179,2]
[404742487,1770499836102,-2458.84320844,0.000179,2]
[404742488,1770499836113,-19803.25776321,0.0001799,3]
[404742489,1770499836124,-2078.27978345,0.0001799,2]
[404742491,1770499836133,-2078.27978345,0.0001799,2]
[404742492,1770499836143,-2025603.06842608,0.00018,2]
[404742493,1770499836152,-2551.56678574,0.00018,2]
[404742494,1770499836162,-1265306.42792303,0.00018,2]
[404742495,1770499836171,-300.53617951,0.00018,2]
[404742496,1770499836180,-1026.52463962,0.00018,2]
[404742497,1770499836190,-487.0,0.00018,2]
[404742498,1770499836199,-487.0,0.00018,2]
[404742499,1770499836208,-487.0,0.00018,2]
[404742500,1770499836218,-487.0,0.00018,2]
[404742501,1770499836228,-487.0,0.00018,2]
[404742502,1770499836238,-487.0,0.00018,2]
[404742503,1770499836247,-487.0,0.00018,2]
[404742504,1770499836256,-487.0,0.00018,2]
[404742505,1770499836266,-487.0,0.00018,2]
[404742507,1770499836275,-487.0,0.00018,2]
[404742508,1770499836284,-920.05,0.00018,2]
[404742509,1770499836293,-155.0630337,0.00018012,2]
[404742510,1770499836302,-3000.0,0.00018112,2]
[404742511,1770499836312,-1500.0,0.00018112,2]
[404742512,1770499836321,-3000.0,0.00018112,2]
[404742513,1770499836331,-1059.86662212,0.00018112,2]
[404742514,1770499836340,-242.10038489,0.00018112,2]
[404742515,1770499836350,-3000.0,0.00018112,2]
[404742516,1770499836359,-200.0,0.00018319,2]
[404742517,1770499836369,-88562.41,0.00018356,2]
[404742518,1770499836378,-1600.0,0.00018397,2]
[404742519,1770499836386,-4609.0,0.00018437,2]
[404742520,1770499836395,-1169.76636636,0.00018564,2]
[404742521,1770499836403,-1252.0,0.00018641,2]
[404742522,1770499836411,-2327.70695956,0.0001866,2]
[404742523,1770499836419,-1117.46581372,0.0001866,2]
[404742524,1770499836428,-3500.0,0.0001866,2]
[404742525,1770499836442,-4029.21385015,0.00019,2]
[404742526,1770499836452,-358.95478828,0.0001901,7]
[404742527,1770499836461,-4000.0,0.00019208,2]
[404742529,1770499836470,-666.99158648,0.00019283,2]
[404742530,1770499836480,-1304.11,0.00019339,2]
[404742531,1770499836490,-150.0,0.00019456,2]
[404742532,1770499836502,-155.0,0.00019588,2]
[404742533,1770499836512,-1546.8548043,0.00019756,2]
[404742534,1770499836525,-500.0,0.00019924,2]
[404742535,1770499836535,-1628.97246764,0.00019926,2]
[404742536,1770499836545,-1534.60381113,0.0002,2]
[404742537,1770499836556,-176.65861001,0.0002,2]
[404742538,1770499836567,-1469.32316731,0.0002,5]
[404742539,1770499836578,-25616.9961754,0.0002,2]
[404742540,1770499836588,-2464.68,0.0002,2]
[404742541,1770499836599,-3950.0,0.0002,2]
[404742542,1770499836609,-1295.62986456,0.0002,2]
[404742543,1770499836619,-2941.52846044,0.0002,7]
[404742544,1770499836629,-529.97285625,0.0002,7]
[404742545,1770499836639,-1045.84457285,0.0002,2]
[404742546,1770499836649,-2866.04458895,0.0002,2]
[404742547,1770499836659,-2618.58359404,0.0002,7]
[404742548,1770499836670,-12934.9265516,0.0002,2]
[404742549,1770499836680,-152.0,0.0002,2]
[404742550,1770499836691,-8720.0,0.0002001,2]
[404742551,1770499836700,-1169.76636636,0.00020123,2]
[404742552,1770499836712,-2129.0,0.00020164,2]
[404742553,1770499836722,-1600.0,0.00020237,2]
[404742554,1770499836732,-6453.0,0.00020281,2]
[404742555,1770499836742,-485.78899645,0.0002039,2]
[404742556,1770499836752,-500.0,0.00020547,2]
[404742557,1770499836762,-299.92001368,0.00020547,2]
[404742558,1770499836773,-500.0,0.00020547,2]
[404742559,1770499836783,-565.77,0.00020547,2]
[404742560,1770499836792,-21552.16,0.00020548,2]
[404742561,1770499836802,-7988.09293068,0.00020633,2]
[404742562,1770499836812,-22684.23991341,0.000207,2]
[404742563,1770499836823,-12928.16673441,0.00021,2]
[404742564,1770499836832,-20000.0,0.00021,2]
[404742565,1770499836841,-40000.0,0.00021,2]
[404742566,1770499836851,-1194.96861466,0.00021,2]
[404742567,1770499836861,-197.23950554,0.00021,2]
[404742568,1770499836871,-160.0,0.00021,7]
[404742569,1770499836881,-14824.61484515,0.00021,2]
[404742570,1770499836892,-155.0,0.00021368,2]
[404742571,1770499836903,-6387.23,0.0002137,2]
[404742572,1770499836914,-57626.17712389,0.000215,2]
[404742573,1770499836923,-222.49089562,0.000215,2]
[404742574,1770499836933,-1169.76636636,0.00021682,2]
[404742575,1770499836943,-500.0,0.00021817,2]
[404742576,1770499836952,-500.0,0.00021817,2]
[404742577,1770499836962,-500.0,0.00021817,2]
[404742578,1770499836971,-3620.0,0.00021823,2]
[404742579,1770499836981,-2023.30573995,0.00021917,2]
[404742580,1770499836991,-640.52,0.00022,7]
[404742581,1770499837000,-799.93171184,0.00022,7]
[404742582,1770499837010,-163.53,0.00022,2]
[404742583,1770499837021,-160.0,0.00022,2]
[404742584,1770499837032,-1600.0,0.00022076,2]
[404742585,1770499837045,-495.29333879,0.000221,2]
[404742586,1770499837055,-240.67093758,0.0002211,2]
[404742587,1770499837064,-9035.0,0.00022309,2]
[404742588,1770499837075,-155.06303369,0.00022357,2]
[404742589,1770499837085,-500.0,0.0002246,2]
[404742590,1770499837095,-500.0,0.0002246,2]
[404742591,1770499837106,-150.38423359,0.0002246,2]
[404742592,1770499837115,-500.0,0.0002246,2]
[404742593,1770499837124,-560.15570053,0.0002246,2]
[404742594,1770499837133,-500.0,0.0002246,2]
[404742595,1770499837143,-260.20893212,0.0002246,2]
[404742596,1770499837153,-500.0,0.0002246,2]
[404742597,1770499837162,-500.0,0.0002246,2]
[404742598,1770499837172,-500.63616897,0.0002246,2]
[404742599,1770499837181,-500.0,0.0002246,2]
[404742600,1770499837190,-500.0,0.0002246,2]
[404742601,1770499837200,-500.0,0.0002246,2]
[404742602,1770499837209,-500.0,0.0002246,2]
[404742603,1770499837218,-163.59988081,0.0002246,2]
[404742604,1770499837228,-500.0,0.0002246,2]
[404742605,1770499837237,-500.0,0.0002246,2]
[404742606,1770499837246,-513.38706051,0.0002246,2]
[404742607,1770499837255,-500.79748844,0.0002246,2]
[404742608,1770499837266,-500.0,0.0002246,2]
[404742609,1770499837275,-500.0,0.0002246,2]
[404742610,1770499837284,-500.0,0.0002246,2]
[404742611,1770499837294,-522.75360818,0.0002246,2]
[404742612,1770499837303,-500.81799169,0.0002246,2]
[404742613,1770499837312,-558.99399893,0.0002246,2]
[404742614,1770499837321,-500.0,0.0002246,2]
[404742615,1770499837332,-500.0,0.0002246,2]
[404742616,1770499837343,-500.87517084,0.0002246,2]
[404742617,1770499837353,-500.0,0.0002246,2]
[404742618,1770499837362,-500.0,0.0002246,2]
[404742619,1770499837373,-500.0,0.0002246,2]
[404742620,1770499837383,-594.14235028,0.0002246,2]
[404742621,1770499837393,-500.0,0.0002246,2]
[404742622,1770499837403,-500.0,0.0002246,2]
[404742623,1770499837413,-500.0,0.0002246,2]
[404742624,1770499837424,-500.0,0.0002246,2]
[404742625,1770499837434,-500.0,0.0002246,2]
[404742626,1770499837478,-500.0,0.0002246,2]
[404742627,1770499837489,-185.78488201,0.0002246,2]
[404742628,1770499837499,-500.0,0.0002246,2]
[404742629,1770499837509,-161.5938242,0.0002246,2]
[404742630,1770499837519,-500.0,0.0002246,2]
[404742631,1770499837528,-500.0,0.0002246,2]
[404742632,1770499837538,-460.63501252,0.0002246,2]
[404742633,1770499837547,-160.74846826,0.0002246,2]
[404742634,1770499837557,-500.0,0.0002246,2]
[404742635,1770499837566,-500.0,0.0002246,2]
[404742636,1770499837575,-500.0,0.0002246,2]
[404742637,1770499837586,-500.0,0.0002246,2]
[404742638,1770499837596,-486.66249529,0.0002246,2]
[404742639,1770499837607,-168.15979464,0.0002246,2]
[404742640,1770499837617,-565.74537999,0.0002246,2]
[404742641,1770499837629,-550.61684817,0.0002246,2]
[404742642,1770499837640,-35556.18490778,0.000225,2]
[404742643,1770499837650,-386114.61861471,0.000226,2]
[404742644,1770499837659,-3611.28842791,0.000226,2]
[404742645,1770499837670,-255.93537285,0.000226,2]
[404742646,1770499837680,-151.0,0.000226,2]
[404742647,1770499837691,-152.650821,0.000226,2]
[404742648,1770499837701,-152.650821,0.000226,2]
[404742649,1770499837711,-152.650821,0.000226,2]
[404742650,1770499837721,-152.650821,0.000226,2]
[404742651,1770499837731,-524.13408761,0.0002271,2]
[404742652,1770499837742,-637.54823264,0.00023,7]
[404742653,1770499837753,-303695.10015662,0.00023,2]
[404742654,1770499837763,-1009.68604208,0.00023,2]
[404742655,1770499837773,-160.0,0.00023,2]
[404742656,1770499837784,-11934.60957625,0.00023,2]
[404742657,1770499837795,-1000.0,0.00023008,2]
[404742658,1770499837804,-1000.0,0.00023008,2]
[404742659,1770499837814,-1000.0,0.00023008,2]
[404742660,1770499837824,-1000.0,0.00023008,2]
[404742661,1770499837835,-1000.0,0.00023008,2]
[404742662,1770499837845,-1000.0,0.00023008,2]
[404742663,1770499837854,-1000.0,0.00023008,2]
[404742664,1770499837865,-1000.0,0.00023008,2]
[404742665,1770499837875,-1000.0,0.00023008,2]
[404742666,1770499837887,-505.3656764,0.00023008,2]
[404742667,1770499837897,-1000.0,0.00023008,2]
[404742668,1770499837906,-1000.0,0.00023008,2]
[404742669,1770499837916,-267.60703924,0.00023008,2]
[404742670,1770499837927,-501.07018625,0.00023008,2]
[404742671,1770499837936,-1000.0,0.00023008,2]
[404742672,1770499837947,-1000.0,0.00023008,2]
[404742673,1770499837956,-501.21553048,0.00023008,2]
[404742674,1770499837966,-500.74996921,0.00023008,2]
[404742675,1770499837976,-1000.0,0.00023008,2]
[404742676,1770499837987,-1000.0,0.00023008,2]
[404742677,1770499837999,-1000.0,0.00023008,2]
[404742678,1770499838008,-1000.0,0.00023008,2]
[404742679,1770499838019,-1000.0,0.00023008,2]
[404742680,1770499838029,-1000.0,0.00023008,2]
[404742681,1770499838043,-1000.0,0.00023008,2]
[404742682,1770499838052,-1000.0,0.00023008,2]
[404742683,1770499838062,-1000.0,0.00023008,2]
[404742685,1770499838071,-1000.0,0.00023008,2]
[404742687,1770499838082,-1000.0,0.00023008,2]
[404742688,1770499838092,-1000.0,0.00023008,2]
[404742690,1770499838101,-1000.0,0.00023008,2]
[404742691,1770499838111,-502.4667955,0.00023008,2]
[404742692,1770499838121,-151.0,0.00023008,2]
[404742693,1770499838130,-151.0,0.00023008,2]
[404742694,1770499838140,-151.0,0.00023008,2]
[404742695,1770499838150,-271.178983,0.00023008,2]
[404742696,1770499838160,-271.178983,0.00023008,2]
[404742697,1770499838170,-271.178983,0.00023008,2]
[404742698,1770499838179,-271.178983,0.00023008,2]
[404742699,1770499838188,-523.80152521,0.000232,2]
[404742700,1770499838198,-1169.76636636,0.00023241,2]
[404742701,1770499838207,-200.0,0.000235,2]
[404742703,1770499838217,-553.29,0.00023555,2]
[404742705,1770499838227,-620.35,0.00023555,2]
[404742707,1770499838236,-598.28836626,0.00023555,2]
[404742708,1770499838245,-500.0,0.00023555,2]
[404742709,1770499838255,-500.0,0.00023555,2]
[404742710,1770499838264,-500.0,0.00023555,2]
[404742711,1770499838274,-500.0,0.00023555,2]
[404742712,1770499838286,-500.0,0.00023555,2]
[404742713,1770499838296,-1500.0,0.00023556,2]
[404742714,1770499838304,-1504.2260666,0.00023556,2]
[404742715,1770499838314,-908.89576694,0.00023556,2]
[404742716,1770499838324,-631.42408239,0.00023556,2]
[404742717,1770499838334,-1500.0,0.00023556,2]
[404742718,1770499838343,-879.27826315,0.00023556,2]
[404742719,1770499838353,-1500.0,0.00023556,2]
[404742720,1770499838371,-1500.0,0.00023556,2]
[404742721,1770499838380,-1500.0,0.00023556,2]
[404742722,1770499838390,-1500.0,0.00023556,2]
[404742723,1770499838399,-501.14950121,0.00023556,2]
[404742724,1770499838408,-1503.93923178,0.00023556,2]
[404742725,1770499838418,-1500.0,0.00023556,2]
[404742726,1770499838427,-386.62164618,0.00023556,2]
[404742727,1770499838436,-1500.0,0.00023556,2]
[404742728,1770499838446,-1500.0,0.00023556,2]
[404742729,1770499838455,-1510.89137022,0.00023556,2]
[404742730,1770499838466,-1500.0,0.00023556,2]
[404742731,1770499838476,-504.40745995,0.00023556,2]
[404742732,1770499838489,-1505.8521348,0.00023556,2]
[404742733,1770499838499,-388.42070518,0.00023556,2]
[404742734,1770499838508,-1647.83890298,0.00023556,2]
[404742735,1770499838517,-1627.75934903,0.00023556,2]
[404742736,1770499838527,-1181.56918098,0.00023556,2]
[404742737,1770499838536,-1500.0,0.00023556,2]
[404742738,1770499838545,-525.83341626,0.00023556,2]
[404742739,1770499838555,-7988.09293068,0.00023557,2]
[404742740,1770499838563,-450.0,0.00023604,2]
[404742741,1770499838573,-1628.97246764,0.00023952,2]
[404742742,1770499838582,-1023.23430613,0.00024,2]
[404742743,1770499838591,-3600.0,0.00024,2]
[404742744,1770499838601,-1237.45432845,0.00024,2]
[404742745,1770499838611,-1990.99013013,0.00024104,2]
[404742746,1770499838620,-2149.51215349,0.00024104,2]
[404742747,1770499838630,-2000.0,0.00024104,2]
[404742748,1770499838639,-2000.0,0.00024104,2]
[404742749,1770499838648,-2000.0,0.00024104,2]
[404742750,1770499838658,-2000.0,0.00024104,2]
[404742751,1770499838667,-2000.0,0.00024104,2]
[404742752,1770499838679,-422.77653807,0.0002421,2]
[404742753,1770499838690,-3703.4624495,0.0002421,2]
[404742754,1770499838699,-12928.16673441,0.0002429,2]
[404742755,1770499838708,-152.01739561,0.00024329,2]
[404742756,1770499838718,-640.52,0.000245,7]
[404742757,1770499838727,-3862.0,0.0002454,2]
[404742758,1770499838736,-167.90557164,0.0002465,2]
[404742759,1770499838746,-2210.92986901,0.00024652,2]
[404742760,1770499838756,-2500.0,0.00024652,2]
[404742761,1770499838766,-2222.56300425,0.00024652,2]
[404742762,1770499838776,-2500.0,0.00024652,2]
[404742763,1770499838785,-1000.0,0.00024658,2]
[404742764,1770499838795,-902.93,0.00024658,2]
[404742765,1770499838804,-151.71,0.00024669,2]
[404742766,1770499838813,-270.84,0.00024886,2]
[404742767,1770499838823,-155.0,0.0002493,2]
[404742768,1770499838832,-1113.4888333,0.00025,2]
[404742769,1770499838842,-207.4442137,0.00025,2]
[404742770,1770499838851,-1784.17496099,0.00025,2]
[404742771,1770499838860,-519.6409406,0.00025,2]
[404742772,1770499838870,-540.0,0.00025,2]
[404742773,1770499838880,-610.70826901,0.00025,2]
[404742774,1770499838889,-3043.31499872,0.00025,2]
[404742775,1770499838899,-7123.24751675,0.00025,2]
[404742776,1770499838908,-167.2689716,0.00025,2]
[404742777,1770499838918,-500.0,0.000252,2]
[404742778,1770499838928,-1014.87292919,0.000252,2]
[404742779,1770499838938,-49512.91781454,0.0002539,2]
[404742780,1770499838948,-600.72002558,0.0002599,2]
[404742781,1770499838957,-4521.47167927,0.00026,2]
[404742782,1770499838966,-216.4211876,0.00026,2]
[404742783,1770499838975,-30057.83711213,0.000263,2]
[404742784,1770499838985,-1169.76636636,0.00026358,2]
[404742785,1770499838994,-27467.0864908,0.000264,2]
[404742786,1770499839004,-7988.09293068,0.00026482,2]
[404742787,1770499839014,-155.06303369,0.00026702,2]
[404742788,1770499839023,-538.8,0.00026961,2]
[404742789,1770499839036,-250.0,0.00027,2]
[404742790,1770499839046,-1034.29527218,0.00027,2]
[404742791,1770499839056,-530.0,0.00027,2]
[404742792,1770499839078,-538.8,0.00027235,2]
[404742793,1770499839088,-797.82352941,0.0002737,2]
[404742794,1770499839098,-4110.07708678,0.0002739,2]
[404742795,1770499839110,-8120.50681951,0.0002739,2]
[404742796,1770499839120,-519.4,0.00027397,2]
[404742797,1770499839129,-902.93,0.00027397,2]
[404742798,1770499839138,-201.2562935,0.000275,2]
[404742799,1770499839148,-549.78642381,0.000275,2]
[404742800,1770499839158,-538.8,0.00027509,2]
[404742801,1770499839168,-12928.16673441,0.0002758,2]
[404742802,1770499839178,-538.8,0.00027783,2]
[404742803,1770499839189,-1169.76636636,0.00027917,2]
[404742804,1770499839200,-1628.97246764,0.00027978,2]
[404742805,1770499839209,-71328.40660307,0.00028,2]
[404742806,1770499839219,-640.52,0.00028,7]
[404742807,1770499839230,-50862.4421814,0.00028,2]
[404742808,1770499839242,-160.0,0.00028,2]
[404742809,1770499839252,-205.88,0.00028057,2]
[404742810,1770499839263,-180.0,0.00028282,2]
[404742811,1770499839272,-485.78899645,0.00028287,2]
[404742812,1770499839282,-340.39,0.00028959,2]
[404742813,1770499839292,-500.0,0.00028982,10]
[404742814,1770499839301,-980.02413713,0.00029,2]
[404742815,1770499839310,-502.39992062,0.00029,2]
[404742816,1770499839319,-7988.09293068,0.00029406,2]
[404742817,1770499839329,-1169.76636636,0.00029476,2]
[404742818,1770499839338,-11673.71451169,0.000299,2]
[404742819,1770499839348,-173.17,0.00029954,14]
[404742820,1770499839357,-237.38329208,0.0002999,2]
[404742821,1770499839367,-591.5075181,0.0003,7]
[404742822,1770499839376,-1818.83836505,0.0003,2]
[404742823,1770499839385,-163.14671548,0.0003,2]
[404742824,1770499839394,-1100.63268506,0.0003013,2]
[404742825,1770499839403,-634.57864906,0.0003013,2]
[404742826,1770499839412,-201.87528113,0.0003013,2]
[404742827,1770499839421,-5401.06462395,0.0003013,2]
[404742828,1770499839432,-902.93,0.00030137,2]
[404742829,1770499839442,-340.39,0.00030568,2]
[404742830,1770499839452,-12928.16673441,0.00030869,2]
[404742831,1770499839461,-227.72709896,0.00030991,2]
[404742832,1770499839471,-609.47161346,0.00030991,2]
[404742833,1770499839481,-223.2130425,0.00030991,6]
[404742834,1770499839491,-2458.84320842,0.00030991,2]
[404742835,1770499839502,-1169.76636636,0.00031035,2]
[404742836,1770499839511,-155.06303369,0.00031047,2]
[404742837,1770499839520,-197.47031313,0.000315,2]
[404742838,1770499839529,-150.0,0.000315,2]
[404742839,1770499839539,-151.71,0.00031513,2]
[404742840,1770499839548,-270.84,0.00031772,2]
[404742841,1770499839557,-1628.97246764,0.00032003,2]
[404742842,1770499839566,-340.39,0.00032177,2]
[404742843,1770499839576,-894.72585091,0.000323,2]
[404742844,1770499839586,-7988.09293068,0.00032331,2]
[404742845,1770499839596,-1169.76636636,0.00032593,2]
[404742846,1770499839606,-500.0,0.00032616,2]
[404742847,1770499839618,-152.650821,0.00032616,7]
[404742848,1770499839628,-152.650821,0.00032616,7]
[404742849,1770499839639,-152.650821,0.00032616,7]
[404742850,1770499839650,-152.650821,0.00032616,7]
[404742851,1770499839660,-507.0,0.00032616,2]
[404742852,1770499839671,-4832.94194423,0.000328,2]
[404742853,1770499839682,-902.93,0.00032877,2]
[404742854,1770499839692,-24857.11,0.000329,14]
[404742855,1770499839701,-1013.7761403,0.00033,5]
[404742856,1770499839712,-153.63540437,0.00033,2]
[404742857,1770499839723,-155.77,0.000332,14]
[404742858,1770499839733,-1429.45,0.000332,2]
[404742859,1770499839742,-1212.11725022,0.000335,2]
[404742860,1770499839752,-640.52,0.000335,14]
[404742861,1770499839762,-13075.0,0.00033754,5]
[404742862,1770499839774,-340.39,0.00033786,2]
[404742863,1770499839783,-150.0,0.00033873,5]
[404742864,1770499839792,-150.0,0.00033873,5]
[404742865,1770499839801,-507.0,0.0003397,3]
[404742866,1770499839811,-1169.76636636,0.00034152,2]
[404742867,1770499839820,-12928.16673441,0.00034159,2]
[404742868,1770499839829,-250.0,0.00034421,5]
[404742869,1770499839839,-250.0,0.00034421,5]
[404742870,1770499839848,-1731.94437755,0.0003449,2]
[404742871,1770499839858,-5078.0,0.000349,5]
[404742872,1770499839868,-150.0,0.00034904,2]
[404742873,1770499839878,-350.0,0.00034968,5]
[404742874,1770499839887,-350.0,0.00034968,5]
[404742875,1770499839897,-1918.23562081,0.00035,2]
[404742876,1770499839907,-800.14801699,0.00035,2]